bitfinex-derivatives/quotes_BNBF0:USTF0_20250510
["timestamp","ask_amount","ask_price","bid_price","bid_amount"]
[1746905445099,0.28126504,654.36,653.29,0.30614275]
[1746905445496,0.26638395,654.42,653.29,0.30614275]
[1746905445799,0.28129712,654.41,653.29,0.30614275]
[1746905446101,0.28129712,654.4,653.29,0.30614275]
[1746905446300,0.28129712,654.39,653.29,0.30614275]
[1746905446602,0.28129712,654.38,653.29,0.30614275]
[1746905446804,0.28129712,654.37,653.29,0.30614275]
[1746905447203,0.28129712,654.36,653.29,0.30614275]
[1746905447502,0.28129712,654.35,653.29,0.30614275]
[1746905447702,0.28129712,654.34,653.29,0.30614275]
[1746905448805,0.28129712,654.33,653.29,0.30614275]
[1746905449206,0.54765864,654.32,653.29,0.30614275]
[1746905449607,0.28129712,654.31,653.29,0.30614275]
[1746905451507,0.26636152,654.32,653.29,0.30614275]
[1746905451809,0.28125375,654.31,653.29,0.30614275]
[1746905452309,0.28125375,654.71,653.29,0.30614275]
[1746905452509,0.26633299,654.3,653.29,0.30614275]
[1746905452809,0.28125375,654.7,653.29,0.30614275]
[1746905453009,0.28125375,654.29,653.29,0.30614275]
[1746905453510,0.26633299,654.28,653.29,0.30614275]
[1746905453911,0.28125375,654.27,653.29,0.30614275]
[1746905455608,0.26633299,654.26,653.29,0.30614275]
[1746905455812,0.54758674,654.26,653.29,0.30614275]
[1746905456013,0.28125375,654.25,653.29,0.30614275]
[1746905456414,0.28125375,654.24,653.29,0.30614275]
[1746905456812,0.28125375,654.25,653.29,0.30614275]
[1746905457112,0.28125375,654.24,653.29,0.30614275]
[1746905457808,0.28125375,654.23,653.29,0.30614275]
[1746905458213,0.28125375,654.25,653.29,0.30614275]
[1746905461320,0.26629121,654.24,653.29,0.30614275]
[1746905462018,0.2811796,654.23,653.29,0.30614275]
[1746905464224,0.26632076,654.22,653.29,0.30614275]
[1746905464923,0.2811796,654.21,653.29,0.30614275]
[1746905467323,0.26632076,654.22,653.29,0.30614275]
[1746905467723,0.28112718,654.21,653.29,0.30614275]
[1746905470224,0.26621278,654.2,653.29,0.30614275]
[1746905470725,0.28112718,654.19,653.29,0.30614275]
[1746905473230,0.28112718,655.32,653.29,0.30614275]
[1746905473431,0.26630547,654.18,653.29,0.30614275]
[1746905473630,0.28112718,655.31,653.29,0.30614275]
[1746905474127,0.28112718,655.3,653.29,0.30614275]
[1746905474531,0.28112718,655.29,653.29,0.30614275]
[1746905474934,0.28112718,655.28,653.29,0.30614275]
[1746905475234,0.28112718,655.27,653.29,0.30614275]
[1746905475635,0.28112718,655.26,653.29,0.30614275]
[1746905476234,0.28112718,655.25,653.29,0.30614275]
[1746905476435,0.54722088,655.25,653.29,0.30614275]
[1746905476630,0.28112718,655.24,653.29,0.30614275]
[1746905476837,0.2660937,655.25,653.29,0.30614275]
[1746905477538,0.28108849,655.24,653.29,0.30614275]
[1746905477843,0.28108849,655.23,653.29,0.30614275]
[1746905478340,0.28108849,655.22,653.29,0.30614275]
[1746905478639,0.28108849,655.21,653.29,0.30614275]
[1746905479139,0.28108849,655.2,653.29,0.30614275]
[1746905479341,0.2660937,655.25,653.29,0.30614275]
[1746905479840,0.28108738,655.24,653.29,0.30614275]
[1746905480242,0.28108738,655.23,653.29,0.30614275]
[1746905480644,0.28108738,655.22,653.29,0.30614275]
[1746905480941,0.28108738,655.21,653.29,0.30614275]
[1746905481241,0.28108738,655.2,653.29,0.30614275]
[1746905481641,0.28108738,655.19,653.29,0.30614275]
[1746905481941,0.28108738,655.18,653.29,0.30614275]
[1746905482242,0.54718108,655.18,653.29,0.30614275]
[1746905482435,0.28108738,655.17,653.29,0.30614275]
[1746905482841,0.28108738,655.16,653.29,0.30614275]
[1746905483240,0.28108738,655.15,653.29,0.30614275]
[1746905483542,0.28108738,655.14,653.29,0.30614275]
[1746905483844,0.28108738,655.13,653.29,0.30614275]
[1746905484346,0.28108738,655.12,653.29,0.30614275]
[1746905484744,0.28108738,655.11,653.29,0.30614275]
[1746905485046,0.28108738,655.1,653.29,0.30614275]
[1746905485240,0.54716073,655.1,653.29,0.30614275]
[1746905485444,0.28108738,655.09,653.29,0.30614275]
[1746905485748,0.28108738,655.08,653.29,0.30614275]
[1746905486147,0.28108738,655.07,653.29,0.30614275]
[1746905486547,0.28108738,655.06,653.29,0.30614275]
[1746905486940,0.28108738,655.05,653.29,0.30614275]
[1746905487247,0.28108738,655.04,653.29,0.30614275]
[1746905487645,0.28108738,655.03,653.29,0.30614275]
[1746905488250,0.28108738,655.02,653.3,0.27254283]
[1746905488548,0.28108738,655.01,653.3,0.27254283]
[1746905488747,0.28108738,655.0,653.3,0.27254283]
[1746905489047,0.28108738,654.99,653.3,0.27254283]
[1746905489351,0.26607335,655.1,653.3,0.27254283]
[1746905489352,0.28108738,654.98,653.3,0.27254283]
[1746905489649,0.28108738,654.97,653.3,0.27254283]
[1746905490048,0.28108738,654.96,653.3,0.27254283]
[1746905490448,0.28108738,654.95,653.3,0.27254283]
[1746905490848,0.28108738,654.94,653.3,0.27254283]
[1746905491247,0.54713632,654.93,653.3,0.27254283]
[1746905491554,0.28108738,654.92,653.3,0.27254283]
[1746905491850,0.28108738,654.91,653.3,0.27254283]
[1746905492149,0.28108738,654.9,653.3,0.27254283]
[1746905492449,0.28108738,654.89,653.3,0.27254283]
[1746905492750,0.28108738,654.88,653.3,0.27254283]
[1746905493247,0.28108738,654.87,653.3,0.27254283]
[1746905493549,0.28108738,654.87,653.32,0.30612869]
[1746905493749,0.28108738,654.86,653.32,0.30612869]
[1746905494051,0.28108738,654.85,653.33,0.27254283]
[1746905494446,0.28108738,654.84,653.33,0.27254283]
[1746905494651,0.28108738,654.84,653.35,0.30611463]
[1746905494851,0.28108738,654.83,653.35,0.30611463]
[1746905495352,0.28108738,654.82,653.36,0.27254283]
[1746905495653,0.28108738,654.81,653.36,0.27254283]
[1746905495951,0.28108738,654.8,653.36,0.27254283]
[1746905496153,0.28108738,654.8,653.38,0.30610058]
[1746905496652,0.28108738,654.79,653.38,0.30610058]
[1746905497053,0.28108738,654.78,653.38,0.30610058]
[1746905497446,0.28108738,654.77,653.38,0.30610058]
[1746905497752,0.28108738,654.76,653.38,0.30610058]
[1746905498246,0.28108738,654.75,653.38,0.30610058]
[1746905498753,0.28108738,654.74,653.38,0.30610058]
[1746905499149,0.28108738,654.73,653.38,0.30610058]
[1746905499548,0.28108738,654.72,653.38,0.30610058]
[1746905499853,0.28108738,654.71,653.38,0.30610058]
[1746905500253,0.28108738,654.7,653.38,0.30610058]
[1746905500451,0.54716582,654.7,653.38,0.30610058]
[1746905500649,0.28108738,654.69,653.38,0.30610058]
[1746905500850,0.28108738,654.68,653.38,0.30610058]
[1746905501155,0.28108738,654.69,653.38,0.30610058]
[1746905501957,0.28108738,654.68,653.38,0.30610058]
[1746905502458,0.28108738,654.69,653.38,0.30610058]
[1746905503355,0.28108738,655.13,653.38,0.30610058]
[1746905503757,0.28108738,655.12,653.38,0.30610058]
[1746905504160,0.28108738,655.11,653.38,0.30610058]
[1746905504362,0.54719634,655.11,653.38,0.30610058]
[1746905504557,0.28108738,655.1,653.38,0.30610058]
[1746905504961,0.28108738,655.09,653.38,0.30610058]
[1746905505261,0.28108738,655.08,653.38,0.30610058]
[1746905505762,0.28108738,655.07,653.38,0.30610058]
[1746905506063,0.28108738,655.06,653.38,0.30610058]
[1746905506262,0.54719837,655.06,653.38,0.30610058]
[1746905506463,0.28108738,655.05,653.38,0.30610058]
[1746905506864,0.28108738,655.04,653.38,0.30610058]
[1746905507160,0.28108738,655.03,653.38,0.30610058]
[1746905507468,0.26611099,655.06,653.38,0.30610058]
[1746905508562,0.28096881,655.05,653.39,0.27251323]
[1746905508867,0.28096881,655.04,653.39,0.27251323]
[1746905509264,0.26603166,655.03,653.38,0.30610058]
[1746905509464,0.28096136,655.02,653.39,0.27251465]
[1746905509769,0.28096136,655.01,653.39,0.27251465]
[1746905510068,0.28096136,655.0,653.39,0.27251465]
[1746905510863,0.28096136,655.0,653.41,0.30608653]
[1746905511169,0.28096136,654.99,653.41,0.30608653]
[1746905511465,0.28096136,654.98,653.42,0.27251465]
[1746905511669,0.28096136,654.98,653.44,0.30607247]
[1746905511869,0.28096136,654.97,653.44,0.30607247]
[1746905512169,0.28096136,654.96,653.44,0.30607247]
[1746905512572,0.28096136,654.95,653.44,0.30607247]
[1746905512873,0.26603166,655.03,653.44,0.30607247]
[1746905513372,0.28096963,655.02,653.44,0.30607247]
[1746905514070,0.28096963,655.01,653.44,0.30607247]
[1746905514371,0.28096963,655.0,653.44,0.30607247]
[1746905514672,0.28096963,654.99,653.44,0.30607247]
[1746905514973,0.28096963,654.98,653.44,0.30607247]
[1746905515266,0.28096963,654.97,653.44,0.30607247]
[1746905515467,0.54700535,654.97,653.44,0.30607247]
[1746905515668,0.28096963,654.96,653.44,0.30607247]
[1746905516073,0.28096963,654.95,653.44,0.30607247]
[1746905516574,0.28096963,654.94,653.44,0.30607247]
[1746905516972,0.28096963,654.93,653.44,0.30607247]
[1746905517273,0.28096963,654.92,653.44,0.30607247]
[1746905517771,0.28096963,654.91,653.44,0.30607247]
[1746905517974,0.28096963,654.9,653.45,0.27223355]
[1746905518276,0.28096963,654.89,653.47,0.30605842]
[1746905518575,0.26603572,654.97,653.47,0.30605842]
[1746905518871,0.28092453,654.96,653.48,0.27215678]
[1746905519370,0.28092453,654.95,653.48,0.27215678]
[1746905519675,0.28092453,654.94,653.48,0.27215678]
[1746905519970,0.28092453,654.96,653.48,0.27215678]
[1746905520971,0.26603572,654.97,653.48,0.27215678]
[1746905521177,1.96604543,655.25,653.47,0.30605842]
[1746905521378,0.26599912,654.95,653.49,0.272134]
[1746905521674,0.2809045,654.96,653.49,0.272134]
[1746905521875,0.2809045,654.94,653.48,0.272134]
[1746905522175,0.2809045,655.23,653.48,0.272134]
[1746905522378,0.26597168,654.93,653.48,0.272134]
[1746905522675,0.2809045,655.23,653.48,0.272134]
[1746905522676,0.2809045,655.22,653.48,0.272134]
[1746905522871,0.54687719,654.92,653.5,0.30604437]
[1746905523271,0.2809045,654.91,653.51,0.272134]
[1746905523472,0.54690769,654.91,653.51,0.272134]
[1746905523680,0.26600319,654.91,653.53,0.30603032]
[1746905524179,0.2809045,654.9,653.53,0.30603032]
[1746905524780,0.2809045,654.9,653.54,0.27211111]
[1746905525280,0.2809045,655.31,653.54,0.27211111]
[1746905525578,0.26595745,654.89,653.54,0.27211111]
[1746905525781,0.2809045,655.3,653.54,0.27211111]
[1746905526080,0.54685788,655.3,653.54,0.27211111]
[1746905526379,0.2809045,655.29,653.54,0.27211111]
[1746905526877,0.2809045,655.28,653.54,0.27211111]
[1746905527276,0.54685991,655.27,653.54,0.27211111]
[1746905527885,0.2809045,655.26,653.54,0.27211111]
[1746905528181,0.2809045,655.26,653.53,0.30603032]
[1746905530383,0.26596151,655.25,653.53,0.30603032]
[1746905531482,0.2809045,655.24,653.53,0.30603032]
[1746905536282,0.2809045,656.06,653.53,0.30603032]
[1746905536491,0.26597066,655.23,653.53,0.30603032]
[1746905536688,1.96604543,655.96,653.53,0.30603032]
[1746905537085,1.16302409,655.95,653.53,0.30603032]
[1746905537483,0.57080445,655.94,653.53,0.30603032]
[1746905537684,0.30491058,655.93,653.53,0.30603032]
[1746905537983,0.2809045,655.92,653.53,0.30603032]
[1746905538187,0.30491988,655.91,653.53,0.30603032]
[1746905538485,0.58582438,655.91,653.53,0.30603032]
[1746905538685,0.2809045,655.9,653.53,0.30603032]
[1746905538884,0.30492918,655.89,653.53,0.30603032]
[1746905539083,0.58583368,655.89,653.53,0.30603032]
[1746905539489,0.54680809,655.88,653.53,0.30603032]
[1746905539690,0.30493847,655.87,653.53,0.30603032]
[1746905540387,1.96604543,655.65,653.53,0.30603032]
[1746905540791,0.85812281,655.64,653.53,0.30603032]
[1746905541090,0.2809045,655.63,653.53,0.30603032]
[1746905541489,0.2809045,655.62,653.53,0.30603032]
[1746905541790,0.2809045,655.61,653.53,0.30603032]
[1746905542292,0.54684061,655.6,653.53,0.30603032]
[1746905542690,0.2809045,655.59,653.53,0.30603032]
[1746905543193,0.2809045,655.58,653.53,0.30603032]
[1746905543394,0.2809045,655.57,653.53,0.30603032]
[1746905543696,0.2809045,655.56,653.53,0.30603032]
[1746905544094,0.2809045,655.55,653.53,0.30603032]
[1746905544394,0.2809045,655.54,653.53,0.30603032]
[1746905544795,0.2809045,655.53,653.53,0.30603032]
[1746905545290,0.57721831,655.64,653.53,0.30603032]
[1746905545291,1.96604543,655.46,653.53,0.30603032]
[1746905545690,0.85812281,655.45,653.53,0.30603032]
[1746905545994,0.2809045,655.44,653.53,0.30603032]
[1746905546294,0.2809045,655.43,653.53,0.30603032]
[1746905546701,0.2809045,655.42,653.53,0.30603032]
[1746905547097,2.24694993,655.41,653.53,0.30603032]
[1746905547399,0.85812281,655.4,653.53,0.30603032]
[1746905547698,0.2809045,655.39,653.53,0.30603032]
[1746905548198,0.2809045,655.38,653.53,0.30603032]
[1746905548399,0.2809045,655.37,653.53,0.30603032]
[1746905548798,0.2809045,655.36,653.53,0.30603032]
[1746905549199,0.2809045,655.35,653.53,0.30603032]
[1746905549497,0.2809045,655.34,653.53,0.30603032]
[1746905549900,0.2809045,655.33,653.53,0.30603032]
[1746905550294,0.2809045,655.32,653.53,0.30603032]
[1746905550598,0.2809045,655.31,653.53,0.30603032]
[1746905550898,0.2809045,655.3,653.53,0.30603032]
[1746905551397,0.54688227,655.29,653.53,0.30603032]
[1746905551798,0.2809045,655.28,653.53,0.30603032]
[1746905552199,0.2809045,655.27,653.53,0.30603032]
[1746905552599,0.2809045,655.26,653.53,0.30603032]
[1746905553197,0.2809045,655.25,653.53,0.30603032]
[1746905553497,0.2809045,655.24,653.53,0.30603032]
[1746905553801,0.2809045,655.23,653.53,0.30603032]
[1746905554305,0.5468965,655.22,653.53,0.30603032]
[1746905554504,0.2809045,655.21,653.53,0.30603032]
[1746905554904,0.2809045,655.2,653.53,0.30603032]
[1746905555304,0.2809045,655.19,653.53,0.30603032]
[1746905555604,0.2809045,655.18,653.53,0.30603032]
[1746905556104,0.2809045,655.17,653.53,0.30603032]
[1746905556506,0.2809045,655.16,653.53,0.30603032]
[1746905557306,0.2809045,655.15,653.53,0.30603032]
[1746905557505,0.2809045,655.14,653.53,0.30603032]
[1746905558101,0.2809045,655.13,653.53,0.30603032]
[1746905558405,0.2809045,655.12,653.53,0.30603032]
[1746905559106,0.2809045,655.11,653.53,0.30603032]
[1746905559306,0.2809045,655.1,653.53,0.30603032]
[1746905559806,0.2809045,655.09,653.53,0.30603032]
[1746905560409,0.2809045,655.08,653.53,0.30603032]
[1746905560704,0.26606115,655.15,653.53,0.30603032]
[1746905560909,1.96604543,655.1,653.53,0.30603032]
[1746905561611,0.85828476,655.09,653.53,0.30603032]
[1746905562113,0.28095839,655.08,653.53,0.30603032]
[1746905562413,0.28095839,655.07,653.53,0.30603032]
[1746905563115,0.28095839,655.06,653.53,0.30603032]
[1746905563415,0.54697073,655.06,653.53,0.30603032]
[1746905563813,0.28095839,655.05,653.53,0.30603032]
[1746905564110,0.28095839,655.04,653.53,0.30603032]
[1746905564514,0.28095839,655.03,653.53,0.30603032]
[1746905564814,0.28095839,655.02,653.53,0.30603032]
[1746905565109,0.28095839,655.01,653.53,0.30603032]
[1746905565816,0.28095839,655.0,653.53,0.30603032]
[1746905566115,0.28095839,654.99,653.53,0.30603032]
[1746905566314,0.54696158,654.99,653.53,0.30603032]
[1746905566611,0.28095839,654.98,653.53,0.30603032]
[1746905568717,0.26600319,654.99,653.53,0.30603032]
[1746905569110,0.28092751,654.98,653.53,0.30603032]
[1746905569310,0.54692358,654.98,653.53,0.30603032]
[1746905569513,0.28092751,654.97,653.53,0.30603032]
[1746905569715,0.26599607,654.98,653.53,0.30603032]
[1746905569915,0.28092829,654.97,653.53,0.30603032]
[1746905573213,0.26599607,654.98,653.53,0.30603032]
[1746905573515,0.28092489,654.97,653.53,0.30603032]
[1746905575315,0.26599709,654.96,653.53,0.30603032]
[1746905575715,0.28092489,654.95,653.53,0.30603032]
[1746905576817,0.26599709,654.96,653.53,0.30603032]
[1746905577116,0.28091185,654.95,653.53,0.30603032]
[1746905579119,0.85814494,655.6,653.53,0.30603032]
[1746905579420,0.26598794,654.94,653.53,0.30603032]
[1746905579720,0.28091185,654.93,653.53,0.30603032]
[1746905579919,0.54690182,654.93,653.53,0.30603032]
[1746905580120,0.26598997,654.93,653.53,0.30603032]
[1746905580521,0.28091185,654.92,653.53,0.30603032]
[1746905581721,0.28091185,655.77,653.53,0.30603032]
[1746905582021,0.28091185,655.76,653.53,0.30603032]
[1746905582322,0.54679513,655.76,653.53,0.30603032]
[1746905582621,0.28091185,655.75,653.53,0.30603032]
[1746905583320,0.28091185,655.74,653.53,0.30603032]
[1746905583518,0.28091185,655.73,653.53,0.30603032]
[1746905583923,0.28091185,655.72,653.53,0.30603032]
[1746905584325,0.54679513,655.71,653.53,0.30603032]
[1746905584623,0.28091185,655.7,653.53,0.30603032]
[1746905585125,0.28091185,655.69,653.54,0.27233415]
[1746905585419,0.28091185,655.69,653.64,0.30597882]
[1746905585626,0.28091185,655.68,653.64,0.30597882]
[1746905585922,0.28091185,655.67,653.65,0.27233415]
[1746905586124,0.28091185,655.67,653.75,0.30592734]
[1746905586325,0.28091185,655.66,653.75,0.30592734]
[1746905586627,0.28091185,655.65,653.75,0.30592734]
[1746905586926,0.28091185,655.64,653.75,0.30592734]
[1746905587326,0.28091185,655.63,653.75,0.30592734]
[1746905587526,0.54678193,655.63,653.75,0.30592734]
[1746905587722,0.28091185,655.62,653.75,0.30592734]
[1746905588027,0.28091185,655.61,653.75,0.30592734]
[1746905588230,1.96604543,655.58,653.75,0.30592734]
[1746905588527,0.85814494,655.57,653.75,0.30592734]
[1746905588928,0.28091185,655.56,653.76,0.27227538]
[1746905589127,0.28091185,655.56,653.78,0.3059133]
[1746905589321,0.28091185,655.55,653.78,0.3059133]
[1746905589627,0.28091185,655.54,653.78,0.3059133]
[1746905590029,0.28091185,655.53,653.78,0.3059133]
[1746905590330,0.28091185,655.52,653.78,0.3059133]
[1746905590629,0.28091185,655.51,653.78,0.3059133]
[1746905590925,0.28091185,655.5,653.78,0.3059133]
[1746905591428,0.28091185,655.49,653.78,0.3059133]
[1746905591724,0.28091185,655.48,653.78,0.3059133]
[1746905592028,0.28091185,655.47,653.78,0.3059133]
[1746905592329,0.28091185,655.46,653.78,0.3059133]
[1746905592731,0.28091185,655.45,653.78,0.3059133]
[1746905593025,0.28091185,655.44,653.78,0.3059133]
[1746905593330,0.28091185,655.43,653.79,0.27229384]
[1746905593532,0.28091185,655.43,653.81,0.30589926]
[1746905594033,0.28091185,655.42,653.81,0.30589926]
[1746905594433,0.28091185,655.41,653.81,0.30589926]
[1746905594735,0.28091185,655.4,653.81,0.30589926]
[1746905595131,0.28091185,655.39,653.81,0.30589926]
[1746905595434,0.28091185,655.38,653.81,0.30589926]
[1746905595733,0.26586297,655.44,653.81,0.30589926]
[1746905595734,0.28091185,655.37,653.81,0.30589926]
[1746905596136,0.28091185,655.43,653.81,0.30589926]
[1746905599440,0.26583453,655.42,653.81,0.30589926]
[1746905600138,0.28091185,655.41,653.82,0.27206839]
[1746905600739,0.28091185,655.41,653.84,0.30588523]
[1746905600933,0.28091185,655.41,653.85,0.27206839]
[1746905601642,0.28091185,655.41,653.87,0.30587119]
[1746905605548,0.26584266,655.4,653.87,0.30587119]
[1746905606745,0.28091185,655.39,653.88,0.27206697]
[1746905606948,0.28091185,655.39,653.9,0.30585716]
[1746905607147,0.28091185,655.38,653.91,0.27206697]
[1746905607442,0.28091185,655.38,653.93,0.30584313]
[1746905607647,0.28091185,655.39,653.93,0.30584313]
[1746905607848,0.26584266,655.4,653.93,0.30584313]
[1746905608147,0.28072684,655.39,653.93,0.30584313]
[1746905608347,0.54652381,655.39,653.93,0.30584313]
[1746905608544,0.26579697,655.39,653.93,0.30584313]
[1746905608745,0.26579697,655.39,653.94,0.272062]
[1746905608944,0.28072684,655.38,653.96,0.3058291]
[1746905611349,0.26583047,655.37,653.96,0.3058291]
[1746905611748,0.28072684,655.36,653.96,0.3058291]
[1746905614548,0.26582844,655.35,653.96,0.3058291]
[1746905614851,0.28072684,655.34,653.96,0.3058291]
[1746905617049,0.26582844,655.35,653.96,0.3058291]
[1746905617349,0.2807264,655.34,653.96,0.3058291]
[1746905620455,0.26583859,655.33,653.96,0.3058291]
[1746905620652,0.54656499,655.33,653.97,0.27193381]
[1746905620852,0.54656499,655.33,653.99,0.30581507]
[1746905621055,0.2807264,655.32,653.99,0.30581507]
[1746905621350,0.2807264,655.31,653.99,0.30581507]
[1746905621758,0.2807264,655.3,653.99,0.30581507]
[1746905622259,0.2807264,655.32,653.99,0.30581507]
[1746905622856,0.2807264,655.31,653.99,0.30581507]
[1746905623256,0.2807264,655.32,653.99,0.30581507]
[1746905623455,0.26583961,655.3,653.99,0.30581507]
[1746905624060,0.2807264,655.29,653.99,0.30581507]
[1746905626358,0.26584063,655.28,653.99,0.30581507]
[1746905627156,0.28072748,655.27,653.99,0.30581507]
[1746905629462,0.26584164,655.26,653.99,0.30581507]
[1746905631264,0.28072731,655.25,653.99,0.30581507]
[1746905632465,0.26584266,655.24,653.99,0.30581507]
[1746905632863,0.28072731,655.23,653.99,0.30581507]
[1746905635467,0.26584469,655.22,653.99,0.30581507]
[1746905635966,0.28072731,655.21,653.99,0.30581507]
[1746905636369,0.28072731,655.21,654.0,0.27204598]
[1746905636562,0.28072731,655.21,654.02,0.30580104]
[1746905641373,0.26584672,655.2,654.02,0.30580104]
[1746905642168,0.28072984,655.19,654.02,0.30580104]
[1746905643370,0.26584672,655.2,654.02,0.30580104]
[1746905643676,0.28072868,655.19,654.02,0.30580104]
[1746905644476,0.26584875,655.18,654.02,0.30580104]
[1746905644782,0.28072868,655.17,654.02,0.30580104]
[1746905646178,0.26584875,655.18,654.02,0.30580104]
[1746905646478,0.28072948,655.17,654.02,0.30580104]
[1746905647481,0.26584976,655.16,654.02,0.30580104]
[1746905647778,0.28072948,655.15,654.02,0.30580104]
[1746905650381,0.2658518,655.14,654.02,0.30580104]
[1746905650775,0.28072948,655.13,654.02,0.30580104]
[1746905653181,0.57686753,655.76,654.02,0.30580104]
[1746905653486,1.96604543,655.77,654.02,0.30580104]
[1746905653686,0.28067431,655.76,654.02,0.30580104]
[1746905654582,0.26575333,655.75,654.02,0.30580104]
[1746905655087,0.28067431,655.74,654.02,0.30580104]
[1746905656284,0.28067431,655.86,654.02,0.30580104]
[1746905656589,0.26575536,655.73,654.02,0.30580104]
[1746905656888,0.28067431,655.86,654.02,0.30580104]
[1746905657082,0.28067431,655.72,654.02,0.30580104]
[1746905657283,0.28067431,655.86,654.02,0.30580104]
[1746905657483,0.26574318,655.85,654.02,0.30580104]
[1746905657688,0.28067431,655.84,654.02,0.30580104]
[1746905657985,0.26574318,655.85,654.02,0.30580104]
[1746905658284,0.28066828,655.84,654.02,0.30580104]
[1746905659391,0.26574521,655.83,654.02,0.30580104]
[1746905659890,0.28066828,655.82,654.02,0.30580104]
[1746905662487,0.26576043,655.81,654.02,0.30580104]
[1746905662991,0.28066828,655.8,654.03,0.27170223]
[1746905663190,0.28066828,655.8,654.05,0.30578701]
[1746905663388,0.28066828,655.79,654.06,0.27170223]
[1746905663793,0.28066828,655.78,654.08,0.30577299]
[1746905664092,0.28066828,655.77,654.08,0.30577299]
[1746905664588,0.28066828,655.76,654.08,0.30577299]
[1746905664893,0.28066828,655.76,654.09,0.27171784]
[1746905665090,0.28066828,655.75,654.11,0.30575897]
[1746905665495,0.28066828,655.74,654.11,0.30575897]
[1746905665792,0.28066828,655.73,654.11,0.30575897]
[1746905666298,0.28066828,655.72,654.11,0.30575897]
[1746905666597,0.28066828,655.71,654.11,0.30575897]
[1746905667194,0.28066828,655.7,654.11,0.30575897]
[1746905667600,0.28066828,655.69,654.11,0.30575897]
[1746905668199,0.28066828,655.68,654.11,0.30575897]
[1746905668499,0.26574826,655.75,654.11,0.30575897]
[1746905668500,0.28066828,655.67,654.11,0.30575897]
[1746905668900,0.28066828,655.66,654.11,0.30575897]
[1746905669199,0.28066828,655.65,654.11,0.30575897]
[1746905669599,0.28066828,655.74,654.11,0.30575897]
[1746905670101,0.28066828,655.73,654.11,0.30575897]
[1746905670602,0.28066828,655.72,654.11,0.30575897]
[1746905671097,0.28066828,655.71,654.11,0.30575897]
[1746905671297,0.28066828,655.7,654.11,0.30575897]
[1746905671702,0.2657584,655.71,654.11,0.30575897]
[1746905671904,0.28068477,655.7,654.11,0.30575897]
[1746905674407,0.26575942,655.69,654.11,0.30575897]
[1746905674603,0.28068477,655.68,654.11,0.30575897]
[1746905677510,0.26574724,655.67,654.11,0.30575897]
[1746905677810,0.28068477,655.66,654.11,0.30575897]
[1746905683417,0.26573608,655.65,654.11,0.30575897]
[1746905683717,0.28068477,655.64,654.11,0.30575897]
[1746905685012,0.26573608,655.65,654.11,0.30575897]
[1746905685216,0.28061731,655.64,654.11,0.30575897]
[1746905686416,0.26573811,655.63,654.11,0.30575897]
[1746905687923,0.28061731,655.62,654.11,0.30575897]
[1746905689421,0.28061731,655.86,654.11,0.30575897]
[1746905689626,0.26574217,655.61,654.11,0.30575897]
[1746905689827,0.28061731,655.86,654.11,0.30575897]
[1746905690121,0.30493847,655.87,654.11,0.30575897]
[1746905690627,0.26571376,655.86,654.11,0.30575897]
[1746905690924,0.5463315,655.86,654.11,0.30575897]
[1746905691428,0.28061774,655.85,654.11,0.30575897]
[1746905691827,0.28061774,655.85,654.12,0.27147306]
[1746905692024,0.28061774,655.84,654.14,0.30574494]
[1746905692527,0.54633252,655.83,654.15,0.27147306]
[1746905692828,0.28061774,655.82,654.15,0.27147306]
[1746905693327,0.28061774,655.81,654.15,0.27147306]
[1746905693722,0.28061774,655.8,654.15,0.27147306]
[1746905694127,0.28061774,655.8,654.17,0.30573092]
[1746905694528,0.28061774,655.79,654.17,0.30573092]
[1746905694829,0.28061774,655.78,654.17,0.30573092]
[1746905695027,0.28061774,655.82,654.17,0.30573092]
[1746905695324,0.26579697,655.77,654.17,0.30573092]
[1746905695826,0.28061774,655.76,654.17,0.30573092]
[1746905696228,0.28061774,655.75,654.17,0.30573092]
[1746905696827,0.28061774,655.74,654.17,0.30573092]
[1746905697128,0.28061774,655.73,654.17,0.30573092]
[1746905697426,0.28061774,655.72,654.17,0.30573092]
[1746905697728,0.28061774,655.76,654.17,0.30573092]
[1746905698028,0.28061774,655.75,654.17,0.30573092]
[1746905698424,0.28061774,655.74,654.17,0.30573092]
[1746905698628,0.28061774,655.73,654.17,0.30573092]
[1746905699028,0.28061774,655.72,654.17,0.30573092]
[1746905699325,0.28061774,655.71,654.17,0.30573092]
[1746905699726,0.28061774,655.7,654.17,0.30573092]
[1746905700230,0.28061774,655.69,654.17,0.30573092]
[1746905700731,0.28061774,655.68,654.17,0.30573092]
[1746905701027,0.28061774,655.67,654.17,0.30573092]
[1746905701330,0.28061774,655.66,654.17,0.30573092]
[1746905701532,0.5463802,655.66,654.17,0.30573092]
[1746905701724,0.28061774,655.65,654.17,0.30573092]
[1746905702229,0.28061774,655.64,654.17,0.30573092]
[1746905702833,0.28061774,655.63,654.17,0.30573092]
[1746905703229,0.28061774,655.62,654.17,0.30573092]
[1746905703534,0.28061774,655.65,654.17,0.30573092]
[1746905703934,0.28061774,655.64,654.17,0.30573092]
[1746905704530,0.54639441,655.63,654.17,0.30573092]
[1746905704835,0.28061774,655.62,654.17,0.30573092]
[1746905705132,0.28061774,655.61,654.17,0.30573092]
[1746905705538,0.28061774,655.6,654.17,0.30573092]
[1746905705935,0.28061774,655.59,654.17,0.30573092]
[1746905706337,0.28061774,655.58,654.17,0.30573092]